[Event "FIDE World Cup O10-A 2024"]
[Site "Batumi"]
[Date "2024.06.23"]
[Round "1.1"]
[White "Chakrabarty, Reyaansh"]
[Black "Hummatov, Safa"]
[Result "1-0"]
[ECO "B28"]
[WhiteElo "2185"]
[BlackElo "1693"]
[Annotator "RC"]
[PlyCount "105"]
[EventDate "2024.06.23"]
[EventType "swiss"]
[EventCountry "GEO"]
[SourceTitle "playchess.com"]
[Source "ChessBase"]
[SourceQuality "1"]
[TimeControl "5400+30"]

1. e4 {[%emt 0:00:01]} c5 {[%emt 0:00:04]} 2. Nf3 {[%emt 0:00:04]} a6 {[%emt 0:00:07]} 3. c3 {[%emt 0:00:17]} Nf6 {[%emt 0:00:04]} 4. e5 {[%emt 0:00:43]} Nd5 {[%emt 0:00:02]} 5. Bc4 {[%emt 0:02:05]} e6 {[%emt 0:00:12]} 6. O-O {[%emt 0:01:00]} d6 {[%emt 0:00:11]} 7. Re1 {[%emt 0:19:16]} Nb6 {[%emt 0:01:31]} 8. Bb3 {[%emt 0:00:31]} c4 {[%emt 0:00:50]} 9. Bc2 {[%emt 0:00:01]} d5 {[%emt 0:01:29]} 10. d3 {[%emt 0:02:18]} Be7 {[%emt 0:02:52]} 11. dxc4 {[%emt 1:09:44]} Nxc4 {[%emt 0:01:24]} 12. b3 {[%emt 0:00:00]} Nb6 {[%emt 0:00:29]} 13. Qd4 {[%emt 0:00:00]} h5 {[%emt 0:15:44]} 14. Qf4 {[%emt 0:00:00]} Nc6 {[%emt 0:02:56]} 15. Qg3 {[%emt 0:00:00]} g6 {[%emt 0:01:43]} 16. Ng5 {[%emt 0:00:00]} Rg8 {[%emt 0:07:28]} 17. h4 {[%emt 0:00:00]} Qc7 {[%emt 0:06:36]} 18. Ba3 {[%emt 0:00:00]} Bxa3 {[%emt 0:00:53]} 19. Nxa3 {[%emt 0:00:00]} Qe7 {[%emt 0:00:17]} 20. b4 {[%emt 0:00:00]} Nd7 {[%emt 0:06:45]} 21. f4 {[%emt 0:00:00]} b5 {[%emt 0:05:32]} 22. Nb1 {[%emt 0:00:00]} Bb7 {[%emt 0:02:29]} 23. a4 {[%emt 0:00:00]} bxa4 {[%emt 0:01:40]} 24. Bxa4 {[%emt 0:00:00]} Nb6 {[%emt 0:01:24]} 25. Nh7 {[%emt 0:00:00]} Kd8 {[%emt 0:04:53]} 26. Nf6 {[%emt 0:00:00]} Rf8 {[%emt 0:00:17]} 27. Bxc6 {[%emt 0:00:00]} Bxc6 {[%emt 0:00:19]} 28. Qf2 {[%emt 0:00:00]} Qa7 {[%emt 0:07:05]} 29. Nd2 {[%emt 0:00:00]} Nd7 {[%emt 0:01:05]} 30. Re3 {[%emt 0:00:00]} Ke7 {[%emt 0:06:44]} 31. Nxd7 {[%emt 0:00:00]} Bxd7 {[%emt 0:01:14]} 32. Nb3 {[%emt 0:00:00]} Rfc8 {[%emt 0:01:51]} 33. Nd4 {[%emt 0:00:00]} Rc4 {[%emt 0:01:00]} 34. Ra3 {[%emt 0:00:00]} Rac8 {[%emt 0:01:30]} 35. Kh2 {[%emt 0:00:00]} Rxb4 {[%emt 0:07:39]} 36. Nf5+ {[%emt 0:00:00]} gxf5 {[%emt 0:00:44]} 37. cxb4 {[%emt 0:00:00]} Rg8 {[%emt 0:01:57]} 38. g3 {[%emt 0:00:00]} Qb6 {[%emt 0:03:36]} 39. Qd2 {[%emt 0:00:00]} Rc8 {[%emt 0:02:39]} 40. Re1 {[%emt 0:00:00]} Bb5 {[%emt 0:00:45]} 41. Ra2 {[%emt 0:00:00]} Kf8 {[%emt 0:05:00]} 42. Qd1 {[%emt 0:00:00]} Bc4 {[%emt 0:00:00]} 43. Rb2 {[%emt 0:00:00]} Ke7 {[%emt 0:00:00]} 44. Qxh5 {[%emt 0:00:00]} Qd4 {[%emt 0:00:00]} 45. Qg5+ {[%emt 0:00:00]} Kd7 {[%emt 0:00:00]} 46. Rg2 {[%emt 0:00:00]} Qc3 {[%emt 0:00:04]} 47. Rd1 {[%emt 0:00:00]} Qf3 {[%emt 0:00:12]} 48. Rdd2 {[%emt 0:03:46]} Bf1 {[%emt 0:01:01]} 49. Rgf2 {[%emt 0:00:29]} Qe3 {[%emt 0:00:09]} 50. Qg7 {[%emt 0:02:47]} Ke7 {[%emt 0:00:16]} 51. Qf6+ {[%emt 0:00:50]} Ke8 {[%emt 0:00:02]} 52. Rc2 {[%emt 0:00:31]} Bc4 {[%emt 0:00:30]} 53. h5 {[%emt 0:00:28]} 1-0

[Event "FIDE World Cup O10-A 2024"]
[Site "Batumi"]
[Date "2024.06.23"]
[Round "1.2"]
[White "Jakhaia, Andria"]
[Black "Shangin, Lev"]
[Result "0-1"]
[ECO "B90"]
[WhiteElo "1652"]
[BlackElo "2031"]
[Annotator "NA RC"]
[PlyCount "62"]
[EventDate "2024.06.23"]
[EventType "swiss"]
[EventCountry "GEO"]
[SourceTitle "playchess.com"]
[Source "ChessBase"]
[SourceQuality "1"]
[TimeControl "5400+30"]

1. e4 {[%emt 0:00:31]} c5 {[%emt 0:00:33]} 2. Nf3 {[%emt 0:00:13]} d6 {[%emt 0:00:21]} 3. d4 {[%emt 0:00:21]} cxd4 {[%emt 0:02:05]} 4. Nxd4 {[%emt 0:00:12]} Nf6 {[%emt 0:00:19]} 5. Nc3 {[%emt 0:00:28]} a6 {[%emt 0:00:19]} 6. Be3 {[%emt 0:01:39]} e5 {[%emt 0:00:38]} 7. Nb3 {[%emt 0:00:51]} Be6 {[%emt 0:00:59]} 8. f3 {[%emt 0:00:38]} h5 {[%emt 0:00:39]} 9. Nd5 {[%emt 0:03:28]} Bxd5 {[%emt 0:01:08]} 10. exd5 {[%emt 0:00:28]} Nbd7 {[%emt 0:01:21]} 11. Be2 {[%emt 0:04:02]} g6 {[%emt 0:01:46]} 12. O-O {[%emt 0:01:38]} Bg7 {[%emt 0:02:04]} 13. c4 {[%emt 0:04:36]} O-O {[%emt 0:02:40]} 14. Nd2 {[%emt 0:01:11]} Kh7 {[%emt 0:02:53]} 15. Ne4 {[%emt 0:06:53]} Nxe4 {[%emt 1:20:15]} 16. fxe4 {[%emt 0:00:13]} Bh6 {[%emt 0:00:00]} 17. Bf2 {[%emt 0:06:24]} Rc8 {[%emt 0:00:00]} 18. b4 {[%emt 0:03:32]} f5 {[%emt 0:00:00]} 19. exf5 {[%emt 0:07:41]} Rxf5 {[%emt 0:00:00]} 20. Bd3 {[%emt 0:01:06]} Rf6 {[%emt 0:00:00]} 21. Qxh5 {[%emt 0:03:09]} Rxc4 {[%emt 0:00:00]} 22. Qh3 {[%emt 0:00:11]} Rcf4 {[%emt 0:00:00]} 23. Be3 {[%emt 0:02:29]} Rh4 {[%emt 0:00:00]} 24. Qg3 {[%emt 0:01:13]} Bxe3+ {[%emt 0:00:00]} 25. Qxe3 {[%emt 0:00:41]} Rhf4 {[%emt 0:00:00]} 26. g3 {[%emt 0:25:12]} Rxb4 {[%emt 0:00:00]} 27. Qe2 {[%emt 0:00:56]} Kg7 {[%emt 0:00:00]} 28. Rxf6 {[%emt 0:13:34]} Nxf6 {[%emt 0:00:00]} 29. Bc4 {[%emt 0:03:07]} Qb6+ {[%emt 0:00:00]} 30. Kh1 {[%emt 0:00:16]} Qd4 {[%emt 0:00:00]} 31. Bb3 {[%emt 0:00:16]} Qxa1+ {[%emt 0:00:00]} 0-1

[Event "FIDE World Cup O10-A 2024"]
[Site "Batumi"]
[Date "2024.06.23"]
[Round "1.3"]
[White "Ashwath Kaushik"]
[Black "Tsulaia, Giorgi"]
[Result "1-0"]
[ECO "B47"]
[WhiteElo "2029"]
[BlackElo "1646"]
[Annotator "NA RC"]
[PlyCount "77"]
[EventDate "2024.06.23"]
[EventType "swiss"]
[EventCountry "GEO"]
[SourceTitle "playchess.com"]
[Source "ChessBase"]
[SourceQuality "1"]
[TimeControl "5400+30"]

1. e4 {[%emt 0:00:07]} c5 {[%emt 0:00:09]} 2. Nf3 {[%emt 0:00:30]} e6 {[%emt 0:00:06]} 3. d4 {[%emt 0:00:22]} cxd4 {[%emt 0:00:04]} 4. Nxd4 {[%emt 0:00:11]} Nc6 {[%emt 0:00:18]} 5. Nc3 {[%emt 0:00:26]} Qc7 {[%emt 0:00:05]} 6. Qd3 {[%emt 0:00:50]} a6 {[%emt 0:00:07]} 7. Nxc6 {[%emt 0:00:12]} bxc6 {[%emt 0:00:11]} 8. Qg3 {[%emt 0:00:13]} Qxg3 {[%emt 0:00:19]} 9. hxg3 {[%emt 0:00:06]} d5 {[%emt 0:00:42]} 10. g4 {[%emt 0:00:11]} Bd6 {[%emt 0:01:50]} 11. g5 {[%emt 0:00:53]} Ne7 {[%emt 0:01:54]} 12. Be3 {[%emt 0:02:36]} c5 {[%emt 0:01:23]} 13. exd5 {[%emt 0:02:16]} exd5 {[%emt 0:00:10]} 14. Rd1 {[%emt 0:04:57]} d4 {[%emt 0:07:59]} 15. Ne4 {[%emt 0:01:09]} Bc7 {[%emt 0:03:11]} 16. Bc1 {[%emt 0:00:46]} Bf5 {[%emt 0:01:04]} 17. Nxc5 {[%emt 0:02:55]} Bb6 {[%emt 0:01:24]} 18. Na4 {[%emt 0:06:02]} Ba5+ {[%emt 0:01:48]} 19. Bd2 {[%emt 0:01:11]} Bxc2 {[%emt 0:01:10]} 20. Bxa5 {[%emt 0:00:20]} Bxa4 {[%emt 0:00:14]} 21. Rxd4 {[%emt 0:00:38]} Bc6 {[%emt 0:00:51]} 22. Rdh4 {[%emt 0:00:33]} Kd7 {[%emt 0:07:43]} 23. Rxh7 {[%emt 0:02:53]} Rxh7 {[%emt 0:00:10]} 24. Rxh7 {[%emt 0:00:08]} Re8 {[%emt 0:00:15]} 25. Kd2 {[%emt 0:00:27]} Bd5 {[%emt 0:12:54]} 26. b3 {[%emt 0:01:30]} Nf5 {[%emt 0:03:16]} 27. g4 {[%emt 0:02:59]} Nd4 {[%emt 0:00:49]} 28. Rxg7 {[%emt 0:00:19]} Nf3+ {[%emt 0:00:21]} 29. Kc3 {[%emt 0:00:21]} Re5 {[%emt 0:02:38]} 30. g6 {[%emt 0:02:55]} Ke8 {[%emt 0:00:48]} 31. Rg8+ {[%emt 0:00:26]} Ke7 {[%emt 0:00:41]} 32. Bb4+ {[%emt 0:01:32]} Kf6 {[%emt 0:00:54]} 33. g7 {[%emt 0:00:32]} Rg5 {[%emt 0:01:02]} 34. Bf8 {[%emt 0:00:37]} Ke5 {[%emt 0:00:48]} 35. Rh8 {[%emt 0:00:32]} f6 {[%emt 0:00:11]} 36. Bc4 {[%emt 0:00:07]} Bxc4 {[%emt 0:00:29]} 37. bxc4 {[%emt 0:00:09]} Rxg4 {[%emt 0:00:09]} 38. g8=Q {[%emt 0:00:19]} Rxg8 {[%emt 0:00:10]} 39. Rxg8 {[%emt 1:06:50]} 1-0

[Event "FIDE World Cup O10-A 2024"]
[Site "Batumi"]
[Date "2024.06.23"]
[Round "1.4"]
[White "Kalinichenko, German Yu"]
[Black "Safin Safarullakhan"]
[Result "1-0"]
[ECO "B77"]
[WhiteElo "1634"]
[BlackElo "1879"]
[Annotator "NA RC"]
[PlyCount "99"]
[EventDate "2024.06.23"]
[EventType "swiss"]
[EventCountry "GEO"]
[SourceTitle "playchess.com"]
[Source "ChessBase"]
[SourceQuality "1"]
[TimeControl "5400+30"]

1. e4 {[%emt 0:00:04]} c5 {[%emt 0:01:04]} 2. Nf3 {[%emt 0:00:04]} d6 {[%emt 0:01:33]} 3. d4 {[%emt 0:00:21]} cxd4 {[%emt 0:01:36]} 4. Nxd4 {[%emt 0:00:02]} Nf6 {[%emt 0:01:46]} 5. Nc3 {[%emt 0:00:26]} g6 {[%emt 0:01:09]} 6. Be3 {[%emt 0:00:57]} Bg7 {[%emt 0:01:32]} 7. f3 {[%emt 0:00:29]} O-O {[%emt 0:01:56]} 8. Bc4 {[%emt 0:00:14]} Nc6 {[%emt 0:01:04]} 9. Bb3 {[%emt 0:01:50]} Nxd4 {[%emt 0:01:08]} 10. Bxd4 {[%emt 0:00:29]} Be6 {[%emt 0:00:54]} 11. Qd2 {[%emt 0:01:00]} Qa5 {[%emt 0:01:13]} 12. O-O-O {[%emt 0:02:10]} b5 {[%emt 0:01:02]} 13. Kb1 {[%emt 0:01:00]} Rac8 {[%emt 0:01:44]} 14. Nd5 {[%emt 0:00:34]} Qd8 {[%emt 0:04:19]} 15. Nxf6+ {[%emt 0:00:30]} exf6 {[%emt 0:00:39]} 16. Bxa7 {[%emt 0:02:20]} Qc7 {[%emt 0:01:12]} 17. Be3 {[%emt 0:00:20]} Rfd8 {[%emt 0:00:57]} 18. h4 {[%emt 0:04:38]} Bxb3 {[%emt 0:04:05]} 19. cxb3 {[%emt 0:00:50]} b4 {[%emt 0:05:41]} 20. Rc1 {[%emt 0:04:14]} Qa5 {[%emt 0:02:31]} 21. Rxc8 {[%emt 0:02:24]} Rxc8 {[%emt 0:00:13]} 22. Rc1 {[%emt 0:01:18]} Ra8 {[%emt 0:07:36]} 23. a3 {[%emt 0:01:02]} f5 {[%emt 0:05:14]} 24. Qxb4 {[%emt 0:02:19]} Qe5 {[%emt 0:01:28]} 25. Qc3 {[%emt 0:00:27]} Qxc3 {[%emt 0:09:27]} 26. bxc3 {[%emt 0:00:08]} fxe4 {[%emt 0:00:11]} 27. fxe4 {[%emt 0:01:28]} Rxa3 {[%emt 0:00:40]} 28. Kb2 {[%emt 0:00:06]} Ra8 {[%emt 0:00:49]} 29. Rd1 {[%emt 0:00:10]} Be5 {[%emt 0:04:05]} 30. b4 {[%emt 0:03:49]} Rc8 {[%emt 0:03:52]} 31. Rd3 {[%emt 0:00:12]} Kf8 {[%emt 0:00:54]} 32. Bf2 {[%emt 0:00:11]} Rc4 {[%emt 0:02:57]} 33. Bd4 {[%emt 1:10:54]} f5 {[%emt 0:06:28]} 34. Kb3 {[%emt 0:00:00]} Rc7 {[%emt 0:03:23]} 35. Bxe5 {[%emt 0:00:00]} dxe5 {[%emt 0:00:21]} 36. Rf3 {[%emt 0:01:30]} Rf7 {[%emt 0:00:52]} 37. c4 {[%emt 0:00:00]} Ke7 {[%emt 0:01:09]} 38. c5 {[%emt 0:00:00]} Kd7 {[%emt 0:00:25]} 39. b5 {[%emt 0:00:00]} f4 {[%emt 0:00:21]} 40. Kc4 {[%emt 0:00:00]} Ke6 {[%emt 0:02:38]} 41. c6 {[%emt 0:02:30]} h6 {[%emt 0:07:35]} 42. b6 {[%emt 0:00:00]} Kd6 {[%emt 0:00:35]} 43. c7 {[%emt 0:00:00]} Rf8 {[%emt 0:01:48]} 44. Rd3+ {[%emt 0:00:00]} Ke7 {[%emt 0:00:46]} 45. b7 {[%emt 0:00:00]} g5 {[%emt 0:00:34]} 46. c8=Q {[%emt 0:00:00]} Rxc8+ {[%emt 0:00:11]} 47. bxc8=Q {[%emt 0:00:00]} gxh4 {[%emt 0:00:19]} 48. Rd7+ {[%emt 0:00:00]} Kf6 {[%emt 0:00:12]} 49. Qf8+ {[%emt 0:00:00]} Kg6 {[%emt 0:00:14]} 50. Qf5# {[%emt 0:00:00]} 1-0

[Event "FIDE World Cup O10-A 2024"]
[Site "Batumi"]
[Date "2024.06.23"]
[Round "1.5"]
[White "Guntaka, Aayansh"]
[Black "Obado, Sean Adrich"]
[Result "0-1"]
[ECO "B45"]
[WhiteElo "1872"]
[BlackElo "1631"]
[Annotator "NA RC"]
[PlyCount "50"]
[EventDate "2024.06.23"]
[EventType "swiss"]
[EventCountry "GEO"]
[SourceTitle "playchess.com"]
[Source "ChessBase"]
[SourceQuality "1"]
[TimeControl "5400+30"]

1. e4 {[%emt 0:00:05]} c5 {[%emt 0:00:04]} 2. Nf3 {[%emt 0:00:06]} e6 {[%emt 0:00:05]} 3. d4 {[%emt 0:00:05]} cxd4 {[%emt 0:00:07]} 4. Nxd4 {[%emt 0:00:08]} Nf6 {[%emt 0:00:06]} 5. Nc3 {[%emt 0:00:12]} Nc6 {[%emt 0:00:06]} 6. Nxc6 {[%emt 0:00:09]} bxc6 {[%emt 0:00:04]} 7. e5 {[%emt 0:00:16]} Nd5 {[%emt 0:00:15]} 8. Ne4 {[%emt 0:00:11]} Qc7 {[%emt 0:00:13]} 9. f4 {[%emt 0:00:07]} Qb6 {[%emt 0:00:05]} 10. c4 {[%emt 0:00:06]} Bb4+ {[%emt 0:00:31]} 11. Ke2 {[%emt 0:00:05]} f5 {[%emt 0:03:41]} 12. Nf2 {[%emt 0:00:55]} Ne7 {[%emt 0:02:01]} 13. Be3 {[%emt 0:05:17]} Bc5 {[%emt 0:00:41]} 14. Bxc5 {[%emt 0:00:31]} Qxc5 {[%emt 0:01:38]} 15. Kf3 {[%emt 0:03:27]} g5 {[%emt 0:03:50]} 16. g3 {[%emt 0:07:47]} gxf4 {[%emt 0:00:56]} 17. gxf4 {[%emt 0:02:40]} Ng6 {[%emt 0:00:14]} 18. Qe2 {[%emt 0:18:16]} Qd4 {[%emt 0:03:23]} 19. Nh3 {[%emt 0:09:45]} Rg8 {[%emt 0:00:56]} 20. Qc2 {[%emt 0:13:57]} c5 {[%emt 0:04:13]} 21. Rd1 {[%emt 0:03:34]} Bb7+ {[%emt 0:01:48]} 22. Ke2 {[%emt 0:00:07]} Nxf4+ {[%emt 0:00:16]} 23. Nxf4 {[%emt 0:00:56]} Qxf4 {[%emt 0:00:28]} 24. Bh3 {[%emt 0:03:05]} Bf3+ {[%emt 0:00:40]} 25. Kd3 {[%emt 0:02:55]} Qd4# {[%emt 1:16:39]} 0-1

[Event "FIDE World Cup O10-A 2024"]
[Site "Batumi"]
[Date "2024.06.23"]
[Round "1.6"]
[White "Chkhartishvili, Lazare"]
[Black "Aryan Mehta"]
[Result "1/2-1/2"]
[ECO "B52"]
[WhiteElo "1608"]
[BlackElo "1863"]
[Annotator "NA RC"]
[PlyCount "97"]
[EventDate "2024.06.23"]
[EventType "swiss"]
[EventCountry "GEO"]
[SourceTitle "playchess.com"]
[Source "ChessBase"]
[SourceQuality "1"]
[TimeControl "5400+30"]

1. e4 {[%emt 0:00:04]} c5 {[%emt 0:00:10]} 2. Nf3 {[%emt 0:00:05]} d6 {[%emt 0:00:10]} 3. Bb5+ {[%emt 0:00:13]} Bd7 {[%emt 0:00:11]} 4. Bxd7+ {[%emt 0:00:09]} Qxd7 {[%emt 0:00:13]} 5. c4 {[%emt 0:00:11]} Nc6 {[%emt 0:00:22]} 6. O-O {[%emt 0:05:26]} g6 {[%emt 0:00:22]} 7. Nc3 {[%emt 0:08:36]} Bg7 {[%emt 0:00:46]} 8. d3 {[%emt 0:01:33]} Nf6 {[%emt 0:02:50]} 9. h3 {[%emt 0:00:46]} O-O {[%emt 0:01:28]} 10. Be3 {[%emt 0:00:35]} a6 {[%emt 0:02:42]} 11. Ne1 {[%emt 0:17:36]} Rab8 {[%emt 0:04:36]} 12. a4 {[%emt 0:02:27]} Ne8 {[%emt 0:08:08]} 13. Qd2 {[%emt 0:16:59]} Nd4 {[%emt 0:02:37]} 14. Bxd4 {[%emt 0:01:34]} cxd4 {[%emt 0:00:56]} 15. Nd5 {[%emt 0:06:26]} b6 {[%emt 0:18:07]} 16. a5 {[%emt 0:14:32]} bxa5 {[%emt 0:02:26]} 17. Rxa5 {[%emt 0:03:41]} e6 {[%emt 0:10:13]} 18. Nb4 {[%emt 0:00:19]} Qb7 {[%emt 0:02:23]} 19. Nec2 {[%emt 0:00:44]} Nc7 {[%emt 0:01:27]} 20. Rfa1 {[%emt 0:04:08]} Rfd8 {[%emt 0:07:33]} 21. R1a2 {[%emt 0:01:16]} Ra8 {[%emt 0:01:46]} 22. f4 {[%emt 0:04:50]} f5 {[%emt 0:03:51]} 23. exf5 {[%emt 0:01:10]} gxf5 {[%emt 0:00:58]} 24. Qf2 {[%emt 0:01:12]} Rf8 {[%emt 0:02:53]} 25. c5 {[%emt 0:05:47]} dxc5 {[%emt 0:04:08]} 26. Rxc5 {[%emt 0:00:10]} Nb5 {[%emt 0:01:09]} 27. Qf3 {[%emt 0:01:48]} Qd7 {[%emt 0:13:24]} 28. Qc6 {[%emt 0:01:00]} Qxc6 {[%emt 0:00:21]} 29. Nxc6 {[%emt 0:00:37]} Kh8 {[%emt 0:02:23]} 30. N2b4 {[%emt 0:00:45]} Rfc8 {[%emt 0:00:21]} 31. Rxa6 {[%emt 0:00:13]} Rxa6 {[%emt 0:00:19]} 32. Nxa6 {[%emt 0:00:04]} Bf8 {[%emt 0:00:22]} 33. Rxb5 {[%emt 0:01:04]} Rxc6 {[%emt 0:00:01]} 34. Nb8 {[%emt 0:00:23]} Rc1+ {[%emt 0:00:34]} 35. Kf2 {[%emt 0:00:08]} Bd6 {[%emt 0:00:20]} 36. g3 {[%emt 0:00:17]} Rc2+ {[%emt 0:00:28]} 37. Kf3 {[%emt 0:00:10]} Rd2 {[%emt 0:00:14]} 38. Rb3 {[%emt 0:00:08]} Bxb8 {[%emt 0:01:23]} 39. Rxb8+ {[%emt 0:00:05]} Kg7 {[%emt 0:00:04]} 40. Rb3 {[%emt 0:00:16]} Kg6 {[%emt 0:01:22]} 41. g4 {[%emt 0:00:32]} h6 {[%emt 0:00:13]} 42. h4 {[%emt 0:00:24]} Kf6 {[%emt 0:02:33]} 43. g5+ {[%emt 0:00:35]} Kg6 {[%emt 0:00:09]} 44. Kg3 {[%emt 0:01:38]} Kh5 {[%emt 0:00:25]} 45. gxh6 {[%emt 0:00:27]} Kxh6 {[%emt 0:00:08]} 46. Kf3 {[%emt 0:00:52]} Kh5 {[%emt 0:00:06]} 47. Kg3 {[%emt 0:00:06]} Kh6 {[%emt 0:00:05]} 48. Kf3 {[%emt 0:00:06]} Kh5 {[%emt 0:00:04]} 49. Kg3 {[%emt 0:02:53]} 1/2-1/2

[Event "FIDE World Cup O10-A 2024"]
[Site "Batumi"]
[Date "2024.06.23"]
[Round "1.7"]
[White "Bolashakov, Nurali"]
[Black "Macosay Lopez, Julio David"]
[Result "1-0"]
[ECO "C55"]
[WhiteElo "1843"]
[BlackElo "1607"]
[Annotator "NA RC"]
[PlyCount "107"]
[EventDate "2024.06.23"]
[EventType "swiss"]
[EventCountry "GEO"]
[SourceTitle "playchess.com"]
[Source "ChessBase"]
[SourceQuality "1"]
[TimeControl "5400+30"]

1. e4 {[%emt 0:00:04]} e5 {[%emt 0:00:32]} 2. Nf3 {[%emt 0:00:26]} Nc6 {[%emt 0:00:30]} 3. Bc4 {[%emt 0:00:34]} Nf6 {[%emt 0:01:15]} 4. d3 {[%emt 0:00:44]} h6 {[%emt 0:01:26]} 5. c3 {[%emt 0:01:55]} d6 {[%emt 0:01:29]} 6. Nbd2 {[%emt 1:29:47]} g5 {[%emt 0:02:27]} 7. Nf1 {[%emt 0:00:00]} Be6 {[%emt 0:05:54]} 8. Bb5 {[%emt 0:00:00]} Bg7 {[%emt 0:08:24]} 9. d4 {[%emt 0:00:00]} Bd7 {[%emt 0:01:25]} 10. dxe5 {[%emt 0:00:00]} dxe5 {[%emt 0:02:01]} 11. Ng3 {[%emt 0:00:00]} O-O {[%emt 0:05:37]} 12. O-O {[%emt 0:00:00]} Re8 {[%emt 0:03:34]} 13. Qe2 {[%emt 0:00:00]} a6 {[%emt 0:07:04]} 14. Ba4 {[%emt 0:00:00]} b5 {[%emt 0:09:42]} 15. Bc2 {[%emt 0:00:00]} Qe7 {[%emt 0:13:08]} 16. Be3 {[%emt 0:00:00]} Rad8 {[%emt 0:04:35]} 17. a4 {[%emt 0:00:00]} Rb8 {[%emt 0:29:57]} 18. b4 {[%emt 0:00:00]} Rec8 {[%emt 0:00:00]} 19. Rfd1 {[%emt 0:00:00]} Nd8 {[%emt 0:00:28]} 20. Bd3 {[%emt 0:00:00]} Qe8 {[%emt 0:00:29]} 21. axb5 {[%emt 0:00:00]} axb5 {[%emt 0:00:05]} 22. Ra5 {[%emt 0:00:00]} Nb7 {[%emt 0:00:43]} 23. Ra7 {[%emt 0:00:00]} Nd6 {[%emt 0:00:19]} 24. Bc5 {[%emt 0:00:00]} Bf8 {[%emt 0:00:18]} 25. Rda1 {[%emt 0:00:00]} Kh8 {[%emt 0:01:04]} 26. h4 {[%emt 0:00:00]} g4 {[%emt 0:00:17]} 27. Nh2 {[%emt 0:00:00]} h5 {[%emt 0:00:09]} 28. Qe3 {[%emt 0:00:00]} Bg7 {[%emt 0:01:06]} 29. Qg5 {[%emt 0:00:00]} Qg8 {[%emt 0:00:29]} 30. Bxd6 {[%emt 0:00:00]} cxd6 {[%emt 0:00:10]} 31. Nxh5 {[%emt 0:00:00]} Be6 {[%emt 0:00:51]} 32. Nxf6 {[%emt 0:00:00]} Bxf6 {[%emt 0:00:12]} 33. Qxf6+ {[%emt 0:00:00]} Qg7 {[%emt 0:00:04]} 34. Qxg7+ {[%emt 0:00:00]} Kxg7 {[%emt 0:00:08]} 35. Rc1 {[%emt 0:00:00]} Rc6 {[%emt 0:00:47]} 36. Nf1 {[%emt 0:00:00]} Rbc8 {[%emt 0:00:19]} 37. Ra3 {[%emt 0:00:00]} Rb6 {[%emt 0:00:24]} 38. Ne3 {[%emt 0:00:00]} Kh6 {[%emt 0:00:40]} 39. Ra5 {[%emt 0:00:00]} Rcb8 {[%emt 0:00:11]} 40. g3 {[%emt 0:00:00]} Bd7 {[%emt 0:00:55]} 41. Nd5 {[%emt 0:00:05]} R6b7 {[%emt 0:00:10]} 42. Ra6 {[%emt 0:00:07]} Be6 {[%emt 0:00:34]} 43. Rxd6 {[%emt 0:00:05]} Rc8 {[%emt 0:00:08]} 44. Rb6 {[%emt 0:00:34]} Rxb6 {[%emt 0:00:30]} 45. Nxb6 {[%emt 0:00:07]} Rc6 {[%emt 0:00:09]} 46. Nd5 {[%emt 0:00:11]} Rd6 {[%emt 0:00:05]} 47. Bxb5 {[%emt 0:00:04]} Bxd5 {[%emt 0:00:08]} 48. exd5 {[%emt 0:00:07]} Rxd5 {[%emt 0:00:06]} 49. c4 {[%emt 0:00:02]} Rd2 {[%emt 0:00:12]} 50. c5 {[%emt 0:00:04]} Kg6 {[%emt 0:00:11]} 51. c6 {[%emt 0:00:05]} Kf5 {[%emt 0:00:05]} 52. c7 {[%emt 0:00:06]} Ke4 {[%emt 0:00:26]} 53. c8=Q {[%emt 0:21:53]} Kf3 {[%emt 0:00:05]} 54. Qf5# {[%emt 0:00:00]} 1-0

[Event "FIDE World Cup O10-A 2024"]
[Site "Batumi"]
[Date "2024.06.23"]
[Round "1.8"]
[White "Kiladze, Giorgi"]
[Black "Faramarzi Garousi, Maartia"]
[Result "1/2-1/2"]
[ECO "B22"]
[WhiteElo "1552"]
[BlackElo "1820"]
[Annotator "NA RC"]
[PlyCount "79"]
[EventDate "2024.06.23"]
[EventType "swiss"]
[EventCountry "GEO"]
[SourceTitle "playchess.com"]
[Source "ChessBase"]
[SourceQuality "1"]
[TimeControl "5400+30"]

1. e4 {[%emt 0:00:02]} c5 {[%emt 0:00:04]} 2. c3 {[%emt 0:00:07]} Nf6 {[%emt 0:00:06]} 3. e5 {[%emt 0:00:10]} Nd5 {[%emt 1:31:50]} 4. Nf3 {[%emt 0:00:33]} Nc6 {[%emt 0:00:00]} 5. d4 {[%emt 0:00:15]} cxd4 {[%emt 0:00:00]} 6. cxd4 {[%emt 0:00:05]} d6 {[%emt 0:00:00]} 7. exd6 {[%emt 0:00:20]} e6 {[%emt 0:00:00]} 8. Nc3 {[%emt 0:00:22]} Bxd6 {[%emt 0:00:00]} 9. Nxd5 {[%emt 0:00:08]} exd5 {[%emt 0:00:00]} 10. Bd3 {[%emt 0:00:58]} O-O {[%emt 0:00:00]} 11. O-O {[%emt 0:00:13]} h6 {[%emt 0:00:00]} 12. a3 {[%emt 0:01:01]} Bg4 {[%emt 0:00:00]} 13. Be3 {[%emt 0:01:47]} f5 {[%emt 0:00:00]} 14. h3 {[%emt 0:09:28]} Bh5 {[%emt 0:00:00]} 15. Be2 {[%emt 0:01:14]} Qf6 {[%emt 0:00:00]} 16. Qb3 {[%emt 0:02:36]} Ne7 {[%emt 0:00:00]} 17. Rac1 {[%emt 0:01:46]} b6 {[%emt 0:00:00]} 18. Qa2 {[%emt 0:07:22]} Rad8 {[%emt 0:00:00]} 19. b4 {[%emt 0:01:46]} f4 {[%emt 0:00:00]} 20. Bd2 {[%emt 0:00:14]} Bb8 {[%emt 0:00:00]} 21. Bc3 {[%emt 0:01:13]} Qf7 {[%emt 0:00:00]} 22. a4 {[%emt 0:01:22]} Nf5 {[%emt 0:00:00]} 23. b5 {[%emt 0:01:51]} Rfe8 {[%emt 0:00:00]} 24. Rfe1 {[%emt 0:01:06]} Kh8 {[%emt 0:00:00]} 25. Qd2 {[%emt 0:02:17]} Re4 {[%emt 0:00:00]} 26. Ne5 {[%emt 0:01:49]} Bxe5 {[%emt 0:00:00]} 27. Bxh5 {[%emt 0:01:05]} Qxh5 {[%emt 0:00:00]} 28. dxe5 {[%emt 0:00:11]} Rxe1+ {[%emt 0:00:00]} 29. Rxe1 {[%emt 0:00:33]} f3 {[%emt 0:00:00]} 30. Qd1 {[%emt 0:19:09]} Nh4 {[%emt 0:00:00]} 31. g4 {[%emt 0:00:57]} Qe8 {[%emt 0:00:00]} 32. e6 {[%emt 0:00:51]} Qe7 {[%emt 0:00:00]} 33. Qd4 {[%emt 0:01:08]} Ng6 {[%emt 0:00:00]} 34. Re3 {[%emt 0:01:44]} Nh4 {[%emt 0:00:00]} 35. Bb4 {[%emt 0:05:59]} Qg5 {[%emt 0:00:00]} 36. e7 {[%emt 0:00:59]} Re8 {[%emt 0:00:00]} 37. Re5 {[%emt 0:15:46]} Qc1+ {[%emt 0:00:00]} 38. Re1 {[%emt 0:02:19]} Qg5 {[%emt 0:00:00]} 39. Re5 {[%emt 0:00:52]} Qc1+ {[%emt 0:00:00]} 40. Re1 {[%emt 0:00:17]} 1/2-1/2